[Event "Late-Titled-Tuesday-Blitz-April-16-2024"]
[Site "Chess.com"]
[Date "2024.04.16"]
[Round "2"]
[White "SHIVACalypso"]
[Black "Fradi82"]
[Result "0-1"]
[WhiteElo "2447"]
[BlackElo "2179"]
[TimeControl "180+1"]
[EndTime "14:16:34 PDT"]
[Termination "Fradi82 won by resignation"]

1. Nf3 {[%clk 0:03:00.9]} 1... c5 {[%clk 0:02:55.2]} 2. c4 {[%clk 0:03:01.2]}
2... Nc6 {[%clk 0:02:55]} 3. g3 {[%clk 0:03:01.7]} 3... g6 {[%clk 0:02:53.2]} 4.
Bg2 {[%clk 0:03:01.6]} 4... Bg7 {[%clk 0:02:53.5]} 5. O-O {[%clk 0:03:02.2]}
5... e6 {[%clk 0:02:53.1]} 6. Nc3 {[%clk 0:03:02]} 6... Nge7 {[%clk 0:02:50.6]}
7. d3 {[%clk 0:03:00.4]} 7... O-O {[%clk 0:02:50.4]} 8. e4 {[%clk 0:02:59.9]}
8... d6 {[%clk 0:02:49.2]} 9. Be3 {[%clk 0:02:57.5]} 9... a6 {[%clk 0:02:31.6]}
10. d4 {[%clk 0:02:54.3]} 10... cxd4 {[%clk 0:02:31.4]} 11. Nxd4 {[%clk
0:02:55.2]} 11... Qc7 {[%clk 0:02:26.8]} 12. Rc1 {[%clk 0:02:52.3]} 12... Bd7
{[%clk 0:02:15]} 13. Nd5 {[%clk 0:02:39.8]} 13... exd5 {[%clk 0:02:12]} 14. cxd5
{[%clk 0:02:39.3]} 14... Rac8 {[%clk 0:02:04.1]} 15. dxc6 {[%clk 0:02:36]} 15...
Nxc6 {[%clk 0:02:00.8]} 16. Nxc6 {[%clk 0:02:30.4]} 16... Bxc6 {[%clk
0:01:58.2]} 17. Qb3 {[%clk 0:02:30.3]} 17... Qe7 {[%clk 0:01:55.9]} 18. Qb4
{[%clk 0:02:15.7]} 18... Rfe8 {[%clk 0:01:53.7]} 19. Rfd1 {[%clk 0:02:10.4]}
19... Rcd8 {[%clk 0:01:32.4]} 20. Bb6 {[%clk 0:02:06.5]} 20... Rd7 {[%clk
0:01:29.5]} 21. f3 {[%clk 0:01:44.7]} 21... h5 {[%clk 0:01:29.1]} 22. Bd4 {[%clk
0:01:37.9]} 22... Bxd4+ {[%clk 0:01:25.9]} 23. Rxd4 {[%clk 0:01:37.6]} 23... h4
{[%clk 0:01:24.2]} 24. Rcd1 {[%clk 0:01:35.1]} 24... hxg3 {[%clk 0:01:24.2]} 25.
hxg3 {[%clk 0:01:36]} 25... Qg5 {[%clk 0:01:23.7]} 26. Kf2 {[%clk 0:01:36.3]}
26... Red8 {[%clk 0:01:20.3]} 27. Rxd6 {[%clk 0:01:27.6]} 27... a5 {[%clk
0:01:14.4]} 28. Rxd7 {[%clk 0:01:10]} 28... Rxd7 {[%clk 0:01:13.7]} 29. Qb3
{[%clk 0:00:17.2]} 29... Qc5+ {[%clk 0:01:13.1]} 30. Kf1 {[%clk 0:00:16.5]}
30... Bb5+ {[%clk 0:01:12.9]} 31. Ke1 {[%clk 0:00:17]} 31... Rxd1+ {[%clk
0:01:11]} 32. Qxd1 {[%clk 0:00:12.9]} 32... Qe3+ {[%clk 0:01:10.8]} 0-1

[Event "Late-Titled-Tuesday-Blitz-April-16-2024"]
[Site "Chess.com"]
[Date "2024.04.16"]
[Round "2"]
[White "Shankland"]
[Black "Bykov_Egor"]
[Result "1-0"]
[WhiteElo "2885"]
[BlackElo "2582"]
[TimeControl "180+1"]
[EndTime "14:16:35 PDT"]
[Termination "Shankland won by resignation"]

1. d4 {[%clk 0:03:00.9]} 1... Nf6 {[%clk 0:02:59.6]} 2. c4 {[%clk 0:03:01.1]}
2... g6 {[%clk 0:02:56.6]} 3. Nc3 {[%clk 0:03:00.6]} 3... Bg7 {[%clk 0:02:57.2]}
4. e4 {[%clk 0:03:00.2]} 4... d6 {[%clk 0:02:57.8]} 5. Nf3 {[%clk 0:03:00.5]}
5... O-O {[%clk 0:02:57.8]} 6. Be2 {[%clk 0:03:01.1]} 6... e5 {[%clk 0:02:57.8]}
7. Be3 {[%clk 0:03:01.6]} 7... Nc6 {[%clk 0:02:51.2]} 8. d5 {[%clk 0:03:01.2]}
8... Ne7 {[%clk 0:02:51.1]} 9. Nd2 {[%clk 0:03:01.9]} 9... Nd7 {[%clk
0:02:46.6]} 10. b4 {[%clk 0:03:01.5]} 10... f5 {[%clk 0:02:45]} 11. f3 {[%clk
0:03:01.9]} 11... f4 {[%clk 0:02:37.7]} 12. Bf2 {[%clk 0:03:01.5]} 12... g5
{[%clk 0:02:18.5]} 13. c5 {[%clk 0:03:01.2]} 13... Nf6 {[%clk 0:02:00.1]} 14.
Nc4 {[%clk 0:02:59.7]} 14... h5 {[%clk 0:01:51]} 15. h3 {[%clk 0:02:57.6]} 15...
Ne8 {[%clk 0:01:32.8]} 16. Rc1 {[%clk 0:02:55.5]} 16... c6 {[%clk 0:00:59.1]}
17. cxd6 {[%clk 0:02:38.8]} 17... Nxd6 {[%clk 0:00:57.9]} 18. dxc6 {[%clk
0:02:37.3]} 18... Nf7 {[%clk 0:00:42.6]} 19. Qxd8 {[%clk 0:02:30.1]} 19... Rxd8
{[%clk 0:00:43.5]} 20. c7 {[%clk 0:02:27.1]} 20... Rd7 {[%clk 0:00:42.8]} 21.
Nb5 {[%clk 0:02:26.7]} 21... Nc6 {[%clk 0:00:35.6]} 22. O-O {[%clk 0:02:20.1]}
22... Bf8 {[%clk 0:00:15.3]} 23. a3 {[%clk 0:02:15.4]} 23... Re7 {[%clk
0:00:13.2]} 24. Rfd1 {[%clk 0:02:10.4]} 24... Be6 {[%clk 0:00:13.1]} 25. Bc5
{[%clk 0:01:50.9]} 25... Rd7 {[%clk 0:00:12.1]} 26. Rxd7 {[%clk 0:01:47.2]}
26... Bxd7 {[%clk 0:00:13]} 27. Rd1 {[%clk 0:01:46.3]} 27... Be6 {[%clk
0:00:12.3]} 28. Ncd6 {[%clk 0:01:41.6]} 28... a6 {[%clk 0:00:09.2]} 29. Nxf7
{[%clk 0:01:37.9]} 29... Kxf7 {[%clk 0:00:09.7]} 30. Nd6+ {[%clk 0:01:35.7]}
30... Bxd6 {[%clk 0:00:09.2]} 31. Bxd6 {[%clk 0:01:31.6]} 31... Rc8 {[%clk
0:00:08.6]} 32. Kf2 {[%clk 0:01:30.6]} 32... Kf6 {[%clk 0:00:08.9]} 33. Rc1
{[%clk 0:01:29.5]} 33... Nd4 {[%clk 0:00:08.3]} 34. Rc5 {[%clk 0:01:29]} 34...
Nc6 {[%clk 0:00:05.3]} 35. Bxa6 {[%clk 0:01:26.1]} 35... Bd7 {[%clk 0:00:04.9]}
36. Bxb7 {[%clk 0:01:25.5]} 1-0

[Event "Late-Titled-Tuesday-Blitz-April-16-2024"]
[Site "Chess.com"]
[Date "2024.04.16"]
[Round "2"]
[White "lukas_111111"]
[Black "Kostukov_Alex"]
[Result "0-1"]
[WhiteElo "2686"]
[BlackElo "2307"]
[TimeControl "180+1"]
[EndTime "14:16:35 PDT"]
[Termination "Kostukov_Alex won by resignation"]

1. b3 {[%clk 0:03:00.9]} 1... g6 {[%clk 0:02:58.3]} 2. Bb2 {[%clk 0:03:00.5]}
2... Nf6 {[%clk 0:02:58.9]} 3. Bxf6 {[%clk 0:03:00.5]} 3... exf6 {[%clk
0:02:58.8]} 4. c4 {[%clk 0:03:01.4]} 4... Bg7 {[%clk 0:02:59.1]} 5. Nc3 {[%clk
0:03:01]} 5... f5 {[%clk 0:02:59.7]} 6. Rc1 {[%clk 0:03:00.4]} 6... O-O {[%clk
0:03:00.5]} 7. g3 {[%clk 0:03:00.1]} 7... d6 {[%clk 0:02:58.6]} 8. Bg2 {[%clk
0:03:00.3]} 8... Nc6 {[%clk 0:02:59.3]} 9. e3 {[%clk 0:03:00.4]} 9... Bd7 {[%clk
0:02:56.3]} 10. Nge2 {[%clk 0:03:00.4]} 10... Rb8 {[%clk 0:02:56.7]} 11. d4
{[%clk 0:02:59.7]} 11... Re8 {[%clk 0:02:54.5]} 12. O-O {[%clk 0:02:59.2]} 12...
h5 {[%clk 0:02:54.7]} 13. h4 {[%clk 0:02:58.3]} 13... b6 {[%clk 0:02:44.1]} 14.
Nd5 {[%clk 0:02:52.7]} 14... Ne7 {[%clk 0:02:40]} 15. Ndf4 {[%clk 0:02:52.3]}
15... c5 {[%clk 0:02:38.8]} 16. Nh3 {[%clk 0:02:40.2]} 16... Bc6 {[%clk
0:02:32.5]} 17. Bxc6 {[%clk 0:02:27.3]} 17... Nxc6 {[%clk 0:02:32.4]} 18. Nhf4
{[%clk 0:02:27.5]} 18... Bh6 {[%clk 0:02:24.9]} 19. Nd5 {[%clk 0:02:25.5]} 19...
Bg7 {[%clk 0:02:12.6]} 20. Rc2 {[%clk 0:02:23.5]} 20... Ne7 {[%clk 0:02:02.1]}
21. Nef4 {[%clk 0:02:21.4]} 21... Nxd5 {[%clk 0:01:56.6]} 22. Nxd5 {[%clk
0:02:20.9]} 22... cxd4 {[%clk 0:01:56.8]} 23. exd4 {[%clk 0:02:21.8]} 23... Re4
{[%clk 0:01:56.8]} 24. Rd2 {[%clk 0:02:21.4]} 24... b5 {[%clk 0:01:46.9]} 25. f3
{[%clk 0:02:10.6]} 25... Re8 {[%clk 0:01:41.8]} 26. Kg2 {[%clk 0:02:02.5]} 26...
bxc4 {[%clk 0:01:39.2]} 27. bxc4 {[%clk 0:02:02.3]} 27... Qa5 {[%clk 0:01:38.7]}
28. Re2 {[%clk 0:01:45.9]} 28... Kh7 {[%clk 0:01:34.3]} 29. Rfe1 {[%clk
0:01:44.5]} 29... Rxe2+ {[%clk 0:01:25.1]} 30. Rxe2 {[%clk 0:01:44.6]} 30... Qa6
{[%clk 0:01:25]} 31. Qd3 {[%clk 0:01:38.6]} 31... Qa4 {[%clk 0:01:16.3]} 32. Qc2
{[%clk 0:01:31.7]} 32... Qxc2 {[%clk 0:01:12]} 33. Rxc2 {[%clk 0:01:30.4]} 33...
Bxd4 {[%clk 0:01:12.6]} 34. Re2 {[%clk 0:01:28.7]} 34... Kg7 {[%clk 0:01:09]}
35. Rd2 {[%clk 0:01:19.8]} 35... Bc5 {[%clk 0:01:08.3]} 36. Nf4 {[%clk
0:01:10.8]} 36... a5 {[%clk 0:01:07.2]} 37. Nh3 {[%clk 0:01:09.4]} 37... a4
{[%clk 0:01:06.1]} 38. Re2 {[%clk 0:01:09.2]} 38... a3 {[%clk 0:01:05.6]} 39.
Re7 {[%clk 0:01:06.8]} 39... Rb2+ {[%clk 0:01:02.6]} 40. Kf1 {[%clk 0:01:06.9]}
40... Kf8 {[%clk 0:01:00.3]} 41. Rc7 {[%clk 0:01:04.2]} 41... Rxa2 {[%clk
0:01:00.1]} 42. Ng5 {[%clk 0:01:04.3]} 42... Rf2+ {[%clk 0:00:53.1]} 43. Ke1
{[%clk 0:01:04.1]} 43... a2 {[%clk 0:00:53.7]} 44. Rc8+ {[%clk 0:01:04.1]} 44...
Ke7 {[%clk 0:00:53.2]} 45. Ra8 {[%clk 0:01:03.7]} 45... Rh2 {[%clk 0:00:49.4]}
0-1

[Event "Late-Titled-Tuesday-Blitz-April-16-2024"]
[Site "Chess.com"]
[Date "2024.04.16"]
[Round "2"]
[White "trriinu"]
[Black "Lady_Nika"]
[Result "0-1"]
[WhiteElo "2253"]
[BlackElo "2501"]
[TimeControl "180+1"]
[EndTime "14:16:43 PDT"]
[Termination "Lady_Nika won by resignation"]

1. e4 {[%clk 0:03:00.9]} 1... c5 {[%clk 0:02:59.3]} 2. Nf3 {[%clk 0:03:00.7]}
2... e6 {[%clk 0:02:59.6]} 3. c3 {[%clk 0:02:59.7]} 3... d5 {[%clk 0:02:59.1]}
4. exd5 {[%clk 0:03:00.1]} 4... exd5 {[%clk 0:03:00]} 5. d4 {[%clk 0:02:57.4]}
5... cxd4 {[%clk 0:03:00.2]} 6. Nxd4 {[%clk 0:02:56.2]} 6... Nf6 {[%clk
0:03:01.1]} 7. Be2 {[%clk 0:02:55.5]} 7... Be7 {[%clk 0:03:02]} 8. O-O {[%clk
0:02:55.8]} 8... O-O {[%clk 0:03:02.9]} 9. h3 {[%clk 0:02:55.4]} 9... Nc6 {[%clk
0:03:03.5]} 10. Be3 {[%clk 0:02:56.1]} 10... Bd7 {[%clk 0:03:03.2]} 11. Nd2
{[%clk 0:02:56.5]} 11... Rc8 {[%clk 0:03:02.6]} 12. N2f3 {[%clk 0:02:56.8]}
12... a6 {[%clk 0:02:59.9]} 13. Nxc6 {[%clk 0:02:52.3]} 13... Bxc6 {[%clk
0:02:58.9]} 14. Nd4 {[%clk 0:02:52.6]} 14... Bd7 {[%clk 0:02:56.8]} 15. Bd3
{[%clk 0:02:51.7]} 15... Bc5 {[%clk 0:02:53.2]} 16. Qf3 {[%clk 0:02:50.9]} 16...
h6 {[%clk 0:02:46.5]} 17. Rad1 {[%clk 0:02:48.6]} 17... Qe7 {[%clk 0:02:35.2]}
18. Rfe1 {[%clk 0:02:46.5]} 18... Rfe8 {[%clk 0:02:29.9]} 19. Bd2 {[%clk
0:02:25.4]} 19... Qd6 {[%clk 0:02:27.3]} 20. Bf4 {[%clk 0:02:15.6]} 20... Qb6
{[%clk 0:02:26.6]} 21. Bxh6 {[%clk 0:01:46.6]} 21... gxh6 {[%clk 0:02:21.7]} 22.
Nf5 {[%clk 0:01:43.1]} 22... Bxf5 {[%clk 0:02:20]} 23. Qxf5 {[%clk 0:01:41]}
23... Bf8 {[%clk 0:02:12.2]} 24. g4 {[%clk 0:01:31.8]} 24... Bg7 {[%clk
0:02:11.4]} 25. g5 {[%clk 0:01:22.2]} 25... hxg5 {[%clk 0:02:10.6]} 26. Qxg5
{[%clk 0:01:22.7]} 26... Ne4 {[%clk 0:02:10.1]} 27. Qg2 {[%clk 0:01:18.1]} 27...
Re6 {[%clk 0:01:58.8]} 28. Be2 {[%clk 0:00:24.1]} 28... Rg6 {[%clk 0:01:55.5]}
29. Bg4 {[%clk 0:00:24.2]} 29... f5 {[%clk 0:01:54.1]} 30. Rxd5 {[%clk
0:00:23.9]} 30... Nxf2 {[%clk 0:01:43.3]} 31. Qxf2 {[%clk 0:00:14.2]} 31...
Qxf2+ {[%clk 0:01:42.4]} 32. Kxf2 {[%clk 0:00:15.1]} 32... fxg4 {[%clk 0:01:43]}
33. hxg4 {[%clk 0:00:12.5]} 33... Rxg4 {[%clk 0:01:43.9]} 34. Re7 {[%clk
0:00:12]} 34... Rf8+ {[%clk 0:01:43.8]} 35. Ke2 {[%clk 0:00:11.3]} 35... Rgf4
{[%clk 0:01:43.3]} 36. Rdd7 {[%clk 0:00:10.4]} 36... Rf2+ {[%clk 0:01:42.1]} 37.
Kd3 {[%clk 0:00:10.4]} 37... R8f3+ {[%clk 0:01:37.8]} 38. Kc4 {[%clk 0:00:09.9]}
38... b5+ {[%clk 0:01:37.8]} 39. Kd5 {[%clk 0:00:08.5]} 39... Rf7 {[%clk
0:01:37.3]} 40. Rd8+ {[%clk 0:00:07.5]} 40... Kh7 {[%clk 0:01:34.5]} 41. Re4
{[%clk 0:00:06.9]} 41... Rd2+ {[%clk 0:01:32.7]} 0-1

[Event "Late-Titled-Tuesday-Blitz-April-16-2024"]
[Site "Chess.com"]
[Date "2024.04.16"]
[Round "2"]
[White "BardArtem"]
[Black "laziestwin"]
[Result "1-0"]
[WhiteElo "2839"]
[BlackElo "2556"]
[TimeControl "180+1"]
[EndTime "14:16:49 PDT"]
[Termination "BardArtem won on time"]

1. e4 {[%clk 0:03:00.9]} 1... d6 {[%clk 0:02:59.5]} 2. d4 {[%clk 0:03:00.7]}
2... g6 {[%clk 0:02:59.7]} 3. Nc3 {[%clk 0:02:58.2]} 3... Bg7 {[%clk 0:03:00.3]}
4. h4 {[%clk 0:02:55.4]} 4... Nf6 {[%clk 0:02:59.4]} 5. Be2 {[%clk 0:02:54.8]}
5... h5 {[%clk 0:02:54.2]} 6. Bg5 {[%clk 0:02:53.9]} 6... Nbd7 {[%clk
0:02:53.5]} 7. Nf3 {[%clk 0:02:48]} 7... e5 {[%clk 0:02:53]} 8. dxe5 {[%clk
0:02:46.7]} 8... dxe5 {[%clk 0:02:52.4]} 9. Nxe5 {[%clk 0:02:15.5]} 9... Nxe5
{[%clk 0:01:47.6]} 10. Qxd8+ {[%clk 0:02:16.4]} 10... Kxd8 {[%clk 0:01:48.2]}
11. Nd5 {[%clk 0:02:17.3]} 11... c6 {[%clk 0:01:48.8]} 12. Nxf6 {[%clk
0:02:06.3]} 12... Kc7 {[%clk 0:01:30.1]} 13. f4 {[%clk 0:02:03.6]} 13... Nd7
{[%clk 0:00:43.2]} 14. e5 {[%clk 0:01:55.9]} 14... Bxf6 {[%clk 0:00:36.7]} 15.
exf6 {[%clk 0:01:41.4]} 15... Nc5 {[%clk 0:00:17.6]} 16. f5 {[%clk 0:01:31.6]}
16... Bxf5 {[%clk 0:00:16.6]} 17. Bf4+ {[%clk 0:01:32.5]} 17... Kc8 {[%clk
0:00:16.5]} 18. O-O-O {[%clk 0:01:32.8]} 18... Ne6 {[%clk 0:00:16.2]} 19. Bd6
{[%clk 0:01:29.5]} 19... Rd8 {[%clk 0:00:16.1]} 20. Rhf1 {[%clk 0:01:27]} 20...
Be4 {[%clk 0:00:14]} 21. g4 {[%clk 0:01:17.9]} 21... hxg4 {[%clk 0:00:10.5]} 22.
Bxg4 {[%clk 0:01:18.8]} 22... Bd5 {[%clk 0:00:10.2]} 23. Be7 {[%clk 0:01:17.4]}
23... Rh8 {[%clk 0:00:08.8]} 24. Rxd5 {[%clk 0:01:08.9]} 24... cxd5 {[%clk
0:00:06.7]} 25. Bxe6+ {[%clk 0:01:09.6]} 25... fxe6 {[%clk 0:00:05.5]} 26. f7
{[%clk 0:01:10.5]} 26... Kd7 {[%clk 0:00:06]} 27. f8=Q {[%clk 0:01:08]} 27...
Raxf8 {[%clk 0:00:06.2]} 28. Rxf8 {[%clk 0:01:07.3]} 28... Rh7 {[%clk
0:00:01.7]} 29. Bg5 {[%clk 0:01:07.3]} 29... e5 {[%clk 0:00:01.7]} 30. Rf6
{[%clk 0:01:05.2]} 30... Rg7 {[%clk 0:00:01.5]} 31. Kd2 {[%clk 0:01:05]} 31...
Rg8 {[%clk 0:00:01.6]} 32. Kd3 {[%clk 0:01:04.4]} 1-0

[Event "Late-Titled-Tuesday-Blitz-April-16-2024"]
[Site "Chess.com"]
[Date "2024.04.16"]
[Round "2"]
[White "Romkachess"]
[Black "PNEPaul"]
[Result "1-0"]
[WhiteElo "2693"]
[BlackElo "1863"]
[TimeControl "180+1"]
[EndTime "14:16:50 PDT"]
[Termination "Romkachess won on time"]

1. e4 {[%clk 0:03:00.6]} 1... e5 {[%clk 0:02:59.9]} 2. d4 {[%clk 0:02:51.9]}
2... exd4 {[%clk 0:02:59]} 3. Qxd4 {[%clk 0:02:51.6]} 3... Nc6 {[%clk
0:02:58.4]} 4. Qe3 {[%clk 0:02:50.5]} 4... d6 {[%clk 0:02:57.9]} 5. Nc3 {[%clk
0:02:46.2]} 5... Nf6 {[%clk 0:02:57.2]} 6. Bd2 {[%clk 0:02:44.4]} 6... g6 {[%clk
0:02:52.8]} 7. O-O-O {[%clk 0:02:34.9]} 7... Bg7 {[%clk 0:02:52.5]} 8. h4 {[%clk
0:02:28.3]} 8... h6 {[%clk 0:02:51]} 9. Bc4 {[%clk 0:02:24.9]} 9... O-O {[%clk
0:02:48.3]} 10. f3 {[%clk 0:02:23.2]} 10... a6 {[%clk 0:02:38.8]} 11. g4 {[%clk
0:02:14.2]} 11... b5 {[%clk 0:02:36.5]} 12. Bb3 {[%clk 0:02:13.7]} 12... b4
{[%clk 0:02:12]} 13. Nd5 {[%clk 0:02:10.5]} 13... Nxd5 {[%clk 0:01:58.1]} 14.
Bxd5 {[%clk 0:02:07.7]} 14... Bd7 {[%clk 0:01:47.7]} 15. h5 {[%clk 0:02:01.5]}
15... g5 {[%clk 0:01:46]} 16. c3 {[%clk 0:01:51.7]} 16... a5 {[%clk 0:01:44.2]}
17. Ne2 {[%clk 0:01:49.3]} 17... Ne5 {[%clk 0:01:22.8]} 18. Ng3 {[%clk
0:01:42.2]} 18... c6 {[%clk 0:01:02.7]} 19. Bb3 {[%clk 0:01:32.3]} 19... Be6
{[%clk 0:01:02.5]} 20. Nf5 {[%clk 0:01:30]} 20... Bxf5 {[%clk 0:00:47.5]} 21.
gxf5 {[%clk 0:01:23.4]} 21... c5 {[%clk 0:00:34]} 22. Bd5 {[%clk 0:01:20.1]}
22... c4 {[%clk 0:00:29.8]} 23. Be1 {[%clk 0:01:07.6]} 23... b3 {[%clk
0:00:25.3]} 24. a3 {[%clk 0:01:05.4]} 24... Rb8 {[%clk 0:00:23.5]} 25. f4 {[%clk
0:01:02]} 25... Nd7 {[%clk 0:00:22.6]} 26. Rg1 {[%clk 0:00:56.5]} 26... Nb6
{[%clk 0:00:16.6]} 27. fxg5 {[%clk 0:00:51.7]} 27... Nxd5 {[%clk 0:00:16.2]} 28.
Rxd5 {[%clk 0:00:51.7]} 1-0

[Event "Late-Titled-Tuesday-Blitz-April-16-2024"]
[Site "Chess.com"]
[Date "2024.04.16"]
[Round "2"]
[White "EddieMarsalla"]
[Black "ChessBrainiacOnTwitch"]
[Result "1-0"]
[WhiteElo "2572"]
[BlackElo "2827"]
[TimeControl "180+1"]
[EndTime "14:16:51 PDT"]
[Termination "EddieMarsalla won by resignation"]

1. d4 {[%clk 0:03:00.9]} 1... Nf6 {[%clk 0:02:59.4]} 2. Bf4 {[%clk 0:03:00.5]}
2... e6 {[%clk 0:02:58.4]} 3. e3 {[%clk 0:03:00.7]} 3... b6 {[%clk 0:02:59]} 4.
c3 {[%clk 0:03:00.9]} 4... Bb7 {[%clk 0:02:59.5]} 5. Nf3 {[%clk 0:03:01.3]} 5...
Be7 {[%clk 0:03:00.1]} 6. Nbd2 {[%clk 0:03:01.8]} 6... O-O {[%clk 0:03:00.5]} 7.
Bc4 {[%clk 0:03:02.2]} 7... d5 {[%clk 0:02:59.8]} 8. Bd3 {[%clk 0:03:01.9]} 8...
c5 {[%clk 0:02:59.5]} 9. O-O {[%clk 0:03:01.8]} 9... Nbd7 {[%clk 0:02:58.5]} 10.
Qe2 {[%clk 0:03:00.5]} 10... Ne4 {[%clk 0:02:58.5]} 11. Ne5 {[%clk 0:02:59.3]}
11... Ndf6 {[%clk 0:02:58.1]} 12. f3 {[%clk 0:02:57.7]} 12... Nd6 {[%clk
0:02:53.2]} 13. h3 {[%clk 0:02:50.4]} 13... Rc8 {[%clk 0:02:52.5]} 14. Rad1
{[%clk 0:02:48.9]} 14... Nh5 {[%clk 0:02:32.5]} 15. Bh2 {[%clk 0:02:47.8]} 15...
Bh4 {[%clk 0:02:27.4]} 16. f4 {[%clk 0:02:41.8]} 16... g6 {[%clk 0:02:11.3]} 17.
g4 {[%clk 0:02:30.6]} 17... Ng3 {[%clk 0:01:58]} 18. Bxg3 {[%clk 0:02:25.5]}
18... Bxg3 {[%clk 0:01:58.9]} 19. g5 {[%clk 0:02:17.4]} 19... f6 {[%clk
0:01:55.4]} 20. gxf6 {[%clk 0:02:14.6]} 20... Bh4 {[%clk 0:01:31.3]} 21. Qg4
{[%clk 0:02:10.6]} 21... Qxf6 {[%clk 0:01:29.5]} 22. Ndf3 {[%clk 0:02:08.1]}
22... cxd4 {[%clk 0:01:02.8]} 23. cxd4 {[%clk 0:02:03]} 23... Nc4 {[%clk
0:01:01]} 24. Bxc4 {[%clk 0:01:58.8]} 24... dxc4 {[%clk 0:01:01.9]} 25. Nxh4
{[%clk 0:01:55.6]} 25... c3 {[%clk 0:00:59.8]} 26. bxc3 {[%clk 0:01:53.3]} 26...
Rxc3 {[%clk 0:01:00.7]} 27. Rde1 {[%clk 0:01:53.8]} 27... Rfc8 {[%clk
0:00:54.8]} 28. Nhf3 {[%clk 0:01:34.6]} 28... Rc2 {[%clk 0:00:54.5]} 29. Rf2
{[%clk 0:01:34.6]} 29... Be4 {[%clk 0:00:51.3]} 30. Ng5 {[%clk 0:01:30.2]} 30...
Bf5 {[%clk 0:00:50.6]} 31. Qg2 {[%clk 0:01:28.8]} 31... h6 {[%clk 0:00:46.3]}
32. e4 {[%clk 0:01:27.4]} 32... Rxf2 {[%clk 0:00:43.3]} 33. Qxf2 {[%clk
0:01:26.4]} 33... hxg5 {[%clk 0:00:43.8]} 34. exf5 {[%clk 0:01:25.5]} 34... Qxf5
{[%clk 0:00:42.2]} 35. fxg5 {[%clk 0:01:24.1]} 35... Qxg5+ {[%clk 0:00:43.1]}
36. Qg2 {[%clk 0:01:20.4]} 36... Qxg2+ {[%clk 0:00:43.6]} 37. Kxg2 {[%clk
0:01:21.3]} 37... Rc2+ {[%clk 0:00:44.5]} 38. Kg3 {[%clk 0:01:21.3]} 38... Kg7
{[%clk 0:00:43.9]} 39. Nf3 {[%clk 0:01:17.6]} 39... Kf6 {[%clk 0:00:44.4]} 40.
a4 {[%clk 0:01:17.1]} 40... Ra2 {[%clk 0:00:44]} 41. Rc1 {[%clk 0:01:03.5]}
41... Rxa4 {[%clk 0:00:42.7]} 42. Rc6 {[%clk 0:01:04.1]} 42... Kf5 {[%clk
0:00:37]} 43. Nh4+ {[%clk 0:00:59.5]} 43... Kg5 {[%clk 0:00:34.5]} 44. Rxe6
{[%clk 0:00:59.3]} 44... Rxd4 {[%clk 0:00:33.3]} 45. Nf3+ {[%clk 0:00:59.5]} 1-0

[Event "Late-Titled-Tuesday-Blitz-April-16-2024"]
[Site "Chess.com"]
[Date "2024.04.16"]
[Round "2"]
[White "FairChess_on_YouTube"]
[Black "only_strong_moves"]
[Result "1/2-1/2"]
[WhiteElo "3096"]
[BlackElo "2668"]
[TimeControl "180+1"]
[EndTime "14:16:53 PDT"]
[Termination "Game drawn by repetition"]

1. d4 {[%clk 0:03:00.9]} 1... Nf6 {[%clk 0:02:59.9]} 2. c4 {[%clk 0:03:01.2]}
2... e6 {[%clk 0:03:00.5]} 3. Nc3 {[%clk 0:03:01.1]} 3... d5 {[%clk 0:03:00.9]}
4. cxd5 {[%clk 0:03:00.4]} 4... exd5 {[%clk 0:03:00.8]} 5. Bg5 {[%clk
0:02:59.7]} 5... c6 {[%clk 0:03:01.5]} 6. e3 {[%clk 0:02:59.6]} 6... a5 {[%clk
0:03:01.1]} 7. Bd3 {[%clk 0:02:59.1]} 7... Na6 {[%clk 0:03:01.5]} 8. Nge2 {[%clk
0:02:59]} 8... Bd6 {[%clk 0:03:00.4]} 9. h3 {[%clk 0:02:48.9]} 9... h6 {[%clk
0:02:59.1]} 10. Bh4 {[%clk 0:02:48.9]} 10... O-O {[%clk 0:02:59]} 11. O-O {[%clk
0:02:48.4]} 11... Re8 {[%clk 0:02:59.5]} 12. a3 {[%clk 0:02:44.6]} 12... Nc7
{[%clk 0:02:59.6]} 13. Qc2 {[%clk 0:02:43.9]} 13... Ne6 {[%clk 0:02:59.9]} 14.
Rae1 {[%clk 0:02:43.7]} 14... Ng5 {[%clk 0:02:59.8]} 15. f4 {[%clk 0:02:37.6]}
15... Nxh3+ {[%clk 0:02:50.8]} 16. gxh3 {[%clk 0:02:37.2]} 16... Rxe3 {[%clk
0:02:50.2]} 17. Bf5 {[%clk 0:02:28.8]} 17... Qe7 {[%clk 0:01:59.5]} 18. Bxc8
{[%clk 0:02:23.5]} 18... Rxc8 {[%clk 0:02:00.4]} 19. Qf5 {[%clk 0:02:23.5]}
19... Qd7 {[%clk 0:01:45.7]} 20. Qxd7 {[%clk 0:02:14.4]} 20... Nxd7 {[%clk
0:01:46.6]} 21. Bf2 {[%clk 0:02:06]} 21... Rxh3 {[%clk 0:01:45.6]} 22. Kg2
{[%clk 0:02:06]} 22... Rh5 {[%clk 0:01:43.4]} 23. Ng3 {[%clk 0:02:05.7]} 23...
Rh4 {[%clk 0:01:43.8]} 24. Nf5 {[%clk 0:02:05.5]} 24... Rg4+ {[%clk 0:01:41.5]}
25. Kh3 {[%clk 0:02:05.6]} 25... Rg6 {[%clk 0:01:41.4]} 26. Rg1 {[%clk
0:02:03.4]} 26... Bf8 {[%clk 0:01:39.4]} 27. Bh4 {[%clk 0:02:01.1]} 27... Rxg1
{[%clk 0:01:34.1]} 28. Rxg1 {[%clk 0:02:02]} 28... g6 {[%clk 0:01:28.1]} 29. Be7
{[%clk 0:01:49.2]} 29... Re8 {[%clk 0:01:08.5]} 30. Bxf8 {[%clk 0:01:49.5]}
30... Kxf8 {[%clk 0:01:09.4]} 31. Nxh6 {[%clk 0:01:47.7]} 31... Re3+ {[%clk
0:01:08.8]} 32. Kh2 {[%clk 0:01:44.9]} 32... Rd3 {[%clk 0:01:05.9]} 33. Ne2
{[%clk 0:01:36.9]} 33... Rd2 {[%clk 0:01:02]} 34. Rg2 {[%clk 0:01:37.4]} 34...
Nf6 {[%clk 0:01:02.6]} 35. f5 {[%clk 0:01:31.7]} 35... g5 {[%clk 0:00:49.5]} 36.
Kh3 {[%clk 0:01:31.6]} 36... Rd3+ {[%clk 0:00:22.1]} 37. Rg3 {[%clk 0:01:29.6]}
37... Rd2 {[%clk 0:00:22.4]} 38. Rg2 {[%clk 0:01:21.6]} 38... Rd3+ {[%clk
0:00:22.8]} 39. Kh2 {[%clk 0:01:20.7]} 39... Rd2 {[%clk 0:00:22]} 40. Kh3 {[%clk
0:00:58.5]} 1/2-1/2